[Event "20th Iraklio Open 2017"]
[Site "Athens"]
[Date "2017.06.22"]
[Round "6.7"]
[White "Kotrotsos, Vasilios"]
[Black "Katopodis, Dimitrios"]
[Result "1-0"]
[ECO "A03"]
[WhiteElo "2269"]
[BlackElo "2169"]
[Annotator "ChessBase"]
[PlyCount "69"]
[EventDate "2017.??.??"]
[EventType "swiss"]
[EventCountry "GRE"]
[SourceTitle "playchess.com"]
[Source "ChessBase"]
[SourceQuality "1"]
[TimeControl "5400+30"]

1. f4 {[%emt 0:00:30]} d5 {[%emt 0:01:00]} 2. Nf3 {[%emt 0:00:00]} g6 {[%emt 0:01:30]} 3. g3 {[%emt 0:00:00]} Bg7 {[%emt 0:00:30]} 4. Bg2 {[%emt 0:00:00]} Nf6 {[%emt 0:01:30]} 5. O-O {[%emt 0:00:00]} O-O {[%emt 0:00:30]} 6. d3 {[%emt 0:00:30]} c5 {[%emt 0:02:30]} 7. Qe1 {[%emt 0:00:00]} d4 {[%emt 0:03:30]} 8. Na3 {[%emt 0:00:00]} Nc6 {[%emt 0:04:30]} 9. Bd2 {[%emt 0:02:30]} Nd5 {[%emt 0:01:30]} 10. c3 {[%emt 0:00:00]} e5 {[%emt 0:09:30]} 11. fxe5 {[%emt 0:01:00]} Nxe5 {[%emt 0:04:30]} 12. Nxe5 {[%emt 0:00:30]} Bxe5 {[%emt 0:01:30]} 13. Nc2 {[%emt 0:00:30]} Be6 {[%emt 0:04:30]} 14. c4 {[%emt 0:07:30]} Nf6 {[%emt 0:13:30]} 15. b4 {[%emt 0:02:30]} Ng4 {[%emt 0:02:30]} 16. Bf4 {[%emt 0:04:30]} Qe7 {[%emt 0:22:30]} 17. bxc5 {[%emt 0:01:30]} Qxc5 {[%emt 0:01:30]} 18. Rb1 {[%emt 0:00:30]} Bxc4 {[%emt 0:02:57]} 19. h3 {[%emt 0:02:30]} Bxf4 {[%emt 0:04:34]} 20. Rxf4 {[%emt 0:05:30]} Be6 {[%emt 0:02:51]} 21. Nxd4 {[%emt 0:07:30]} Ne3 {[%emt 0:04:00]} 22. Bxb7 {[%emt 0:09:30]} Rab8 {[%emt 0:01:49]} 23. Rb5 {[%emt 0:12:30]} Qc7 {[%emt 0:00:48]} 24. Nxe6 {[%emt 0:08:30]} fxe6 {[%emt 0:01:24]} 25. Rxf8+ {[%emt 0:00:00]} Rxf8 {[%emt 0:00:38]} 26. Bf3 {[%emt 0:00:00]} Qc2 {[%emt 0:03:46]} 27. Qa1 {[%emt 0:15:30]} Rxf3 {[%emt 0:00:52]} 28. Rb8+ {[%emt 0:00:30]} Kf7 {[%emt 0:01:40]} 29. Rb7+ {[%emt 0:00:00]} Ke8 {[%emt 0:00:09]} 30. Qh8+ {[%emt 0:00:00]} Rf8 {[%emt 0:00:44]} 31. Rb8+ {[%emt 0:00:30]} Kd7 {[%emt 0:00:26]} 32. Qxf8 {[%emt 0:01:30]} Qc1+ {[%emt 0:01:01]} 33. Kh2 {[%emt 0:00:30]} Nf1+ {[%emt 0:01:02]} 34. Kg2 {[%emt 0:00:30]} Ne3+ {[%emt 0:01:00]} 35. Kf3 {[%emt 0:00:00]} 1-0

[Event "20th Iraklio Open 2017"]
[Site "Athens"]
[Date "2017.06.23"]
[Round "7.9"]
[White "Fragkos, Vasileios"]
[Black "Abelakiotis, Stavros"]
[Result "1-0"]
[ECO "B44"]
[WhiteElo "1453"]
[BlackElo "1861"]
[Annotator "NA RC"]
[PlyCount "54"]
[EventDate "2017.??.??"]
[EventType "swiss"]
[EventCountry "GRE"]
[SourceTitle "playchess.com"]
[Source "ChessBase"]
[SourceQuality "1"]
[TimeControl "5400+30"]

1. e4 {[%emt 0:00:30]} c5 {[%emt 0:01:00]} 2. Nf3 {[%emt 0:00:00]} e6 {[%emt 0:00:30]} 3. d4 {[%emt 0:00:00]} cxd4 {[%emt 0:00:00]} 4. Nxd4 {[%emt 0:00:30]} Nc6 {[%emt 0:00:00]} 5. c4 {[%emt 0:00:00]} Nf6 {[%emt 0:00:00]} 6. Nc3 {[%emt 0:00:00]} Bb4 {[%emt 0:00:00]} 7. Nxc6 {[%emt 0:00:30]} bxc6 {[%emt 0:00:30]} 8. Bd3 {[%emt 0:01:30]} e5 {[%emt 0:00:00]} 9. O-O {[%emt 0:01:30]} O-O {[%emt 0:00:00]} 10. Qa4 {[%emt 0:01:30] B44: Sicilian: Taimanov: 5 Nb5} (10. Bg5 h6 11. Bh4 Bc5 12. Kh1 d6 13. f3 Be6 14. Qc2 Rb8 15. Rad1 Bd4 16. b3 g5 17. Bf2 c5 18. Nb5 {½-½ (59) Nakamura,H (2789)-Gelfand,B (2777) Wijk aan Zee 2014}) 10... Bc5 {[%emt 0:10:30]} 11. h3 $146 {[%emt 0:05:30]} ({Predecessor:} 11. b4 Bd4 12. Bb2 d5 13. Qc2 dxc4 14. Bxc4 Qe7 15. a3 a5 16. b5 cxb5 17. Bxb5 Bb7 18. Kh1 Rfc8 19. f3 Bxc3 20. Bxc3 Qc5 {0-1 (20) Goth,G (2002)-Gasa,A (2257) Slovakia 2012}) 11... d6 {[%emt 0:07:30]} 12. Qc2 {[%emt 0:10:30]} h6 {[%emt 0:05:30]} 13. Bd2 {[%emt 0:02:30]} Be6 {[%emt 0:01:30]} 14. a3 {[%emt 0:02:30]} a5 {[%emt 0:01:30]} 15. Rab1 {[%emt 0:02:30]} Rb8 {[%emt 0:08:30]} 16. Na4 {[%emt 0:02:30]} Bd4 {[%emt 0:00:00]} 17. b4 {[%emt 0:05:30]} axb4 {[%emt 0:00:00]} 18. axb4 {[%emt 0:00:30]} Nh5 {[%emt 0:01:30]} 19. Nc3 {[%emt 0:03:30]} Qh4 {[%emt 0:26:30]} 20. Be3 {[%emt 0:03:30] [#]} Bxe3 {[%emt 0:07:30]} (20... Bxh3 $1 $17 {[%mdl 512]} 21. gxh3 Qxh3) 21. fxe3 {[%emt 0:00:30] [#]} Bxh3 $1 {[%emt 0:08:37]} 22. Qf2 {[%emt 0:08:30] [#]} (22. gxh3 $17 Qg3+ 23. Kh1 Qxh3+ 24. Qh2 Ng3+ 25. Kg1 Qxh2+ 26. Kxh2 Nxf1+ 27. Bxf1) 22... Qg5 $1 {[%emt 0:03:32]} 23. Kh2 {[%emt 0:00:30]} Be6 {[%emt 0:00:46]} 24. b5 {[%emt 0:01:30]} Nf6 {[%emt 0:00:54]} 25. Kg1 $19 {[%emt 0:05:30]} Ng4 {[%emt 0:04:10]} 26. Qg3 {[%emt 0:03:30]} cxb5 {[%emt 0:00:23]} 27. Nxb5 {[%emt 0:00:00]} Qxe3+ {[%emt 0:12:45]} 1-0

[Event "20th Iraklio Open 2017"]
[Site "Athens"]
[Date "2017.06.23"]
[Round "7.10"]
[White "Samartzis, Mihail"]
[Black "Loutragotis, Paraskevas Pantelei"]
[Result "1-0"]
[ECO "E29"]
[WhiteElo "1896"]
[BlackElo "1891"]
[Annotator "NA RC"]
[PlyCount "51"]
[EventDate "2017.??.??"]
[EventType "swiss"]
[EventCountry "GRE"]
[SourceTitle "playchess.com"]
[Source "ChessBase"]
[SourceQuality "1"]
[TimeControl "5400+30"]

1. d4 {[%emt 0:00:30]} Nf6 {[%emt 0:01:00]} 2. c4 {[%emt 0:00:00]} e6 {[%emt 0:02:30]} 3. Nc3 {[%emt 0:00:00]} Bb4 {[%emt 0:00:30]} 4. e3 {[%emt 0:00:30]} O-O {[%emt 0:00:30]} 5. a3 {[%emt 0:00:30]} Bxc3+ {[%emt 0:00:30]} 6. bxc3 {[%emt 0:00:30]} c5 {[%emt 0:01:30]} 7. Bd3 {[%emt 0:00:30]} Nc6 {[%emt 0:00:30]} 8. Ne2 {[%emt 0:00:30]} b6 {[%emt 0:00:30]} 9. e4 {[%emt 0:01:30]} d6 {[%emt 0:00:30]} 10. Bg5 {[%emt 0:01:30]} Ba6 {[%emt 0:00:30]} 11. O-O {[%emt 0:02:30]} e5 {[%emt 0:07:30]} 12. f4 {[%emt 0:01:30]} exd4 {[%emt 0:00:30]} 13. cxd4 {[%emt 0:00:30]} cxd4 {[%emt 0:01:30]} 14. Ng3 {[%emt 0:03:30]} Qd7 {[%emt 0:04:30]} 15. Bxf6 {[%emt 0:04:30]} gxf6 {[%emt 0:00:00]} 16. Nf5 {[%emt 0:01:30]} Kh8 {[%emt 0:02:00]} 17. Qh5 {[%emt 0:00:30]} Rg8 {[%emt 0:00:30]} 18. Rf3 {[%emt 0:02:30]} Rg6 {[%emt 0:03:30]} 19. Rh3 {[%emt 0:03:30]} Kg8 {[%emt 0:01:30]} 20. Qxh7+ {[%emt 0:00:30]} Kf8 {[%emt 0:00:00]} 21. Qh8+ {[%emt 0:25:30]} Rg8 {[%emt 0:00:00]} 22. Qh6+ {[%emt 0:00:00]} Ke8 {[%emt 0:00:00]} 23. Qxf6 {[%emt 0:00:00]} Ne7 {[%emt 0:02:00]} 24. Rh8 {[%emt 0:03:30]} Rf8 {[%emt 0:00:30]} 25. Rxf8+ {[%emt 0:01:30]} Kxf8 {[%emt 0:00:00]} 26. Qg7+ {[%emt 0:00:00]} 1-0

[Event "20th Iraklio Open 2017"]
[Site "Athens"]
[Date "2017.06.24"]
[Round "8.6"]
[White "Korniotis, Filippos"]
[Black "Fragkos, Vasileios"]
[Result "1-0"]
[ECO "D48"]
[WhiteElo "2143"]
[BlackElo "1453"]
[Annotator "NA"]
[PlyCount "61"]
[EventDate "2017.??.??"]
[EventType "swiss"]
[EventCountry "GRE"]
[SourceTitle "playchess.com"]
[Source "ChessBase"]
[SourceQuality "1"]
[TimeControl "5400+30"]

1. d4 d5 2. c4 c6 3. Nc3 Nf6 4. Nf3 a6 5. e3 Nbd7 6. Bd3 e6 7. O-O dxc4 8. Bxc4 b5 9. Bd3 Be7 10. Re1 O-O 11. e4 Bb7 12. Bf4 c5 13. d5 exd5 14. Nxd5 Nxd5 15. exd5 Nf6 16. d6 Re8 17. dxe7 Rxe7 18. Bxh7+ Kxh7 19. Ng5+ Kg6 20. Qc2+ Kh5 21. Ne6 Be4 22. Qe2+ Kg6 23. Nxd8 Rxd8 24. f3 Rde8 25. fxe4 Rxe4 26. Qc2 c4 27. Re3 Kh7 28. Rae1 g6 29. Rxe4 Rxe4 30. Rxe4 Nxe4 31. Qxe4 1-0

[Event "20th Iraklio Open 2017"]
[Site "Athens"]
[Date "2017.06.24"]
[Round "8.10"]
[White "Nemtsas, Hristoforos"]
[Black "Pelantakis, Mihail"]
[Result "0-1"]
[ECO "D08"]
[WhiteElo "1931"]
[BlackElo "1661"]
[Annotator "NA RC"]
[PlyCount "44"]
[EventDate "2017.??.??"]
[EventType "swiss"]
[EventCountry "GRE"]
[SourceTitle "playchess.com"]
[Source "ChessBase"]
[SourceQuality "1"]
[TimeControl "5400+30"]

1. d4 d5 2. c4 e5 3. dxe5 d4 4. a3 Nc6 5. Nf3 Nge7 {D08: Albin Counter Gambit} 6. b4 Ng6 7. Bb2 a5 8. b5 Ncxe5 9. Bxd4 (9. Nxe5 Nxe5 10. Qxd4 Qxd4 11. Bxd4 Nxc4 12. e3 Be6 13. Be2 {0-1 (30) Wojtaszek,R (2749)-Morozevich,A (2676) Doha 2016}) 9... Nxf3+ 10. exf3 $146 ({Predecessor:} 10. gxf3 Be6 11. Nc3 Bxc4 12. e3 Bxf1 13. Kxf1 {½-½ (60) Matlakov,M (2484)-Chuprov,D (2577) Novokuznetsk 2008}) 10... Qe7+ 11. Qe2 Be6 12. Qe3 O-O-O 13. Bc3 Qd6 14. Nd2 b6 15. Ne4 Qf4 16. g3 f6 17. h4 $2 (17. gxf4 $18 Bf5 {[#]} 18. Bxa5 $1 {[%mdl 512]}) 17... Bf5 $2 (17... Qxe3+ $14 18. fxe3 Ne5) 18. Bh3 $2 (18. gxf4 $18 {is the precise move to win.} Bd6 19. Nxd6+ Rxd6 20. Bh3 Bxh3 21. Rxh3) 18... Bxh3 $4 (18... Qxe3+ $14 19. fxe3 Bxh3 20. Rxh3 h5) 19. Rxh3 $2 (19. gxf4 $18 Bc5 20. Nxc5 bxc5 21. Rxh3) 19... h5 $2 (19... Qf5 $11 20. g4 Qe6) 20. Rh2 $2 ({Only move:} 20. gxf4 $18 Kb8 21. c5 Bxc5 22. Nxc5) 20... f5 $2 (20... Qf5 $15) 21. Ng5 $4 (21. gxf4 $18 {was the only winning move.} Re8 22. Kf1) 21... Rd3 $4 (21... Qxc4 $19 22. Qe6+ Qxe6+ 23. Nxe6 Re8) 22. Bd4 $19 (22. Qe6+ $18 Kb8 23. gxf4 Rxc3 24. Qe8+ Kb7 25. Qxg6 Bxa3 26. Nf7) 22... Bxa3 $4 (22... Rxe3+ $19 23. Bxe3 Qxc4) 0-1

[Event "20th Iraklio Open 2017"]
[Site "Athens"]
[Date "2017.06.25"]
[Round "9.3"]
[White "Loutragotis, Dimitrios"]
[Black "Ergazakis, Ioannis"]
[Result "1-0"]
[ECO "B87"]
[WhiteElo "2143"]
[BlackElo "2150"]
[Annotator "NA"]
[PlyCount "145"]
[EventDate "2017.??.??"]
[EventType "swiss"]
[EventCountry "GRE"]
[SourceTitle "playchess.com"]
[Source "ChessBase"]
[SourceQuality "1"]
[TimeControl "40/5400+30:1800+30"]

1. e4 c5 2. Nf3 d6 3. d4 cxd4 4. Nxd4 Nf6 5. Nc3 a6 6. Bc4 e6 7. Bb3 b5 8. f4 Be7 9. e5 dxe5 10. fxe5 Nd5 (10... Nfd7 $11) 11. Nxd5 exd5 12. Qf3 Bb7 ({Better is} 12... O-O $1 $14) 13. Qg4 g6 14. Bh6 Nc6 15. Nxc6 Bxc6 16. O-O-O Qd7 17. Qd4 O-O-O $18 (17... Rg8 $16 18. Be3 (18. Bxd5 Bxd5 19. Qxd5 Qxd5 $15) 18... Rd8) 18. Rhf1 Qe6 19. Bg7 Rhe8 20. Bf6 Bb7 21. Bxe7 Rxe7 22. Rde1 Rde8 23. Re3 Kb8 24. a4 f5 25. Rd1 Rd7 26. Qf4 Rc7 27. axb5 axb5 28. h4 Rce7 29. Qd4 Rd7 30. Ba2 Rc8 31. Ra3 Rcc7 32. Ra5 Qc6 33. Bb3 Qc5 34. e6 Re7 35. Qh8+ Rc8 36. Qe5+ Rcc7 37. Qh8+ Rc8 38. Qe5+ Rcc7 39. Qe2 Qb6 40. Qxb5 Qxb5 41. Rxb5 Rxe6 42. Bxd5 Re2 43. Rd2 Re1+ 44. Rd1 Re2 45. Rxb7+ Rxb7 46. Bxb7 Kxb7 47. g3 Kc6 48. Rd3 Kc5 49. b3 Kb4 50. Kb2 Rf2 51. Rc3 Rg2 52. Rf3 h5 53. Rc3 Rg1 54. Rd3 Rg2 55. Re3 Rg1 56. c3+ Kc5 57. Kc2 Kd5 58. Kd3 Rd1+ 59. Ke2 Rg1 60. Rd3+ Ke4 61. Re3+ Kd5 62. Rd3+ Ke4 63. Rd4+ Ke5 64. Kf2 Rc1 65. Rc4 Rb1 66. b4 Kd5 67. Rc5+ Ke4 68. Rc6 Rb2+ 69. Ke1 Kf3 70. Rxg6 Rc2 71. b5 Rxc3 72. b6 Rb3 73. Kd2 1-0

[Event "20th Iraklio Open 2017"]
[Site "Athens"]
[Date "2017.06.25"]
[Round "9.7"]
[White "Abelakiotis, Stavros"]
[Black "Spyropoulos, Nikolaos"]
[Result "1/2-1/2"]
[ECO "B31"]
[WhiteElo "1861"]
[BlackElo "2229"]
[Annotator "NA"]
[PlyCount "77"]
[EventDate "2017.??.??"]
[EventType "swiss"]
[EventCountry "GRE"]
[SourceTitle "playchess.com"]
[Source "ChessBase"]
[SourceQuality "1"]
[TimeControl "40/5400+30:1800+30"]

1. e4 c5 2. Nf3 Nc6 3. Bb5 g6 4. Bxc6 bxc6 5. O-O Bg7 6. Re1 Rb8 {LiveBook: 42 Games} 7. Nc3 e5 8. d3 Ne7 9. Rb1 d6 10. Be3 O-O 11. Qd2 f5 $11 12. Bh6 f4 13. Bxg7 Kxg7 14. Kh1 g5 15. Nxg5 Ng6 16. Nf3 Bg4 17. Ng1 f3 18. g3 h5 19. Nd1 h4 20. Rf1 Rf7 21. c3 Qf6 22. Ne3 Qg5 23. Rbd1 hxg3 24. fxg3 f2 25. Nf5+ Rxf5 26. exf5 fxg1=Q+ 27. Kxg1 Qxd2 28. Rxd2 Nf8 29. Kg2 Kf6 30. h3 Bh5 31. g4 Bf7 32. Kg3 Nd7 33. h4 Ke7 34. g5 Bh5 35. Kh3 Rf8 36. Rdf2 a6 37. Rg1 Rg8 38. Rg3 Kf7 39. Rg1 1/2-1/2

[Event "20th Iraklio Open 2017"]
[Site "Athens"]
[Date "2017.06.25"]
[Round "9.8"]
[White "Galanos, Dimitrios"]
[Black "Papadimitriou, Loukas"]
[Result "0-1"]
[ECO "C42"]
[WhiteElo "1996"]
[BlackElo "2059"]
[Annotator "NA"]
[PlyCount "114"]
[EventDate "2017.??.??"]
[EventType "swiss"]
[EventCountry "GRE"]
[SourceTitle "playchess.com"]
[Source "ChessBase"]
[SourceQuality "1"]
[TimeControl "40/5400+30:1800+30"]

1. e4 e5 2. Nf3 Nf6 3. Nxe5 d6 4. Nxf7 Kxf7 5. d4 Qe8 6. Nc3 g6 7. Bc4+ {C42: Petroff Defence: 3 Nxe5 and unusual White 3rd moves} Be6 {LiveBook: 3 Games} 8. Bxe6+ Qxe6 ({Don't play} 8... Kxe6 $6 9. Qf3 $14) 9. O-O Bg7 10. Qd3 Re8 11. d5 $146 ({Predecessor:} 11. Re1 Kg8 12. Bg5 Nbd7 13. f4 c5 14. d5 Qf7 {1-0 (55) Chuprov,D (2525)-Nepomniachtchi,I (2506) Internet 2006}) 11... Qe7 12. Bg5 Nbd7 13. Rae1 h6 14. Bh4 (14. Bc1 $17) 14... g5 15. Bg3 Ne5 16. Qd1 Kg8 $17 17. Nb5 Qf7 18. Nd4 Nh5 19. Nf5 Nf4 20. h4 Qh5 21. f3 Neg6 22. hxg5 Qxg5 23. Qc1 Bd4+ 24. Kh1 Be5 25. Qd2 h5 26. Rg1 Kf7 27. Bh2 h4 28. Ref1 Rh8 29. Rf2 Qf6 30. Rc1 Rh5 31. Ne3 Bxb2 32. Ng4 Bxc1 33. Qxc1 Qg5 34. Qb2 Rb8 35. Qd4 b6 36. Qa4 a5 37. Qc4 Rc8 38. e5 Nxe5 39. Qxf4+ Qxf4 40. Bxf4 Ng6 41. Bd2 Rxd5 42. c4 Rc5 43. f4 Rxc4 44. Nh6+ Kg7 45. f5 Rf8 46. Bg5 Ne5 47. Be7 Re8 48. Bg5 Nf7 49. Nxf7 Kxf7 50. Kh2 Rg4 51. Bf4 Re4 52. g3 Kf6 53. Rc2 Rgxf4 54. gxf4 Rxf4 55. Rxc7 Rf2+ 56. Kh3 Rxa2 57. Rc6 Rb2 0-1

[Event "20th Iraklio Open 2017"]
[Site "Athens"]
[Date "2017.06.25"]
[Round "9.9"]
[White "Fragkos, Vasileios"]
[Black "Koerant, Filipos"]
[Result "0-1"]
[ECO "B07"]
[WhiteElo "1453"]
[BlackElo "1872"]
[Annotator "NA RC"]
[PlyCount "94"]
[EventDate "2017.??.??"]
[EventType "swiss"]
[EventCountry "GRE"]
[SourceTitle "playchess.com"]
[Source "ChessBase"]
[SourceQuality "1"]
[TimeControl "40/5400+30:1800+30"]

1. e4 d6 2. d4 Nf6 3. Nc3 Nbd7 4. f4 e5 5. Nf3 exd4 6. Nxd4 c6 {B07: Pirc Defence: Miscellaneous Systems} (6... g6 7. Be2 Bg7 8. O-O O-O 9. Bf3 c6 10. Kh1 Re8 11. Re1 Nc5 12. b4 Ne6 13. Be3 Nxd4 14. Bxd4 {0-1 (42) Andriasian,Z (2605)-Motylev,A (2677) Warsaw 2012}) 7. Be2 {LiveBook: 3 Games} d5 $146 ({Predecessor:} 7... g6 $11 {remains equal.} 8. O-O Bg7 9. Nb3 Qe7 10. Bd3 O-O 11. Qf3 Rb8 12. Bd2 {1-0 (27) Beikert,G (2435)-Schmidt Schaeffer,S (2395) Germany 1997}) 8. exd5 cxd5 9. O-O Bc5 10. Kh1 O-O 11. Nb3 Bb6 12. Nxd5 Nxd5 13. Qxd5 Qe7 14. Bf3 Nf6 15. Qg5 h6 16. Qh4 Bf5 17. Bd2 Qd7 (17... Bxc2 $11 18. Bc3 Rfe8) 18. Bb4 Rfe8 19. Rad1 (19. Bc3 $14) 19... Qb5 20. c3 {[#]} (20. Bc3 $1 $11) 20... Rad8 $1 21. h3 $2 {[#]} (21. Ba3) 21... a5 $2 (21... Ne4 $1 $19 22. Ra1 g5 23. fxg5 hxg5) 22. Ba3 a4 (22... Ne4 $17 23. Nd4 Bxd4 24. cxd4 g5 25. fxg5 hxg5) 23. Na1 $2 (23. Nd4 $15 Bxd4 24. cxd4) 23... Be4 24. Kh2 Bxf3 25. c4 Rxd1 26. Rxd1 Qxc4 27. Re1 Rxe1 28. Qxe1 Qe2 29. Qxe2 Bxe2 30. Nc2 Bc4 31. Nb4 Bc5 32. Kg3 Bxb4 33. Bxb4 Bxa2 34. Kf2 Ne4+ 35. Ke3 Nf6 36. Kd4 Bd5 37. g3 Bg2 38. h4 h5 39. Be1 Kf8 40. Kc4 Ke7 41. Kb4 Bc6 42. Kc4 Ke6 43. Kd4 Kf5 44. Kc5 Ne4+ 45. Kd4 Kg4 46. Ke5 Nxg3 47. Bxg3 Kxg3 0-1